bitfinex/quotes_SOLUSD_20241001
["timestamp","ask_amount","ask_price","bid_price","bid_amount"]
[1727807799588,16.8102,148.72,148.64,23.776884]
[1727807799790,16.8102,148.72,148.64,40.595984]
[1727807800015,16.8102,148.72,148.64,47.323584]
[1727807800219,6.7263,148.67,148.63,6.728]
[1727807800515,6.7263,148.67,148.62,26.7284]
[1727807800711,16.8102,148.72,148.62,20.0]
[1727807800919,6.7255,148.69,148.64,6.7274]
[1727807801290,16.8102,148.72,148.63,23.5477]
[1727807801494,16.8102,148.72,148.64,23.776884]
[1727807801795,6.7241,148.72,148.67,6.7263]
[1727807801990,6.7241,148.72,148.68,1.34484192]
[1727807802219,16.8074,148.75,148.68,6.7257]
[1727807802523,6.7237,148.73,148.68,13.0039]
[1727807802725,50.4114,148.78,148.69,23.776884]
[1727807802887,6.7241,148.72,148.69,23.776884]
[1727807803093,6.7234,148.74,148.69,30.502184]
[1727807803293,6.7234,148.74,148.69,45.682784]
[1727807803593,16.8007,148.81,148.72,6.724]
[1727807803797,34.76894918,148.82,148.71,23.776884]
[1727807804100,6.7231,148.74,148.71,23.776884]
[1727807804294,33.598,148.82,148.71,23.776884]
[1727807804611,50.3973,148.82,148.73,23.776884]
[1727807805323,6.7221,148.77,148.73,23.776884]
[1727807805494,6.7223,148.76,148.73,23.776884]
[1727807807202,16.7993,148.82,148.73,23.776884]
[1727807807802,6.7209,148.79,148.73,23.776884]
[1727807808123,6.7204,148.8,148.76,13.046]
[1727807808420,50.3874,148.85,148.77,23.776884]
[1727807808608,6.7201,148.81,148.77,23.776884]
[1727807808927,50.3874,148.85,148.77,23.776884]
[1727807808928,6.7204,148.8,148.77,23.776884]
[1727807809295,16.7961,148.85,148.77,46.441384]
[1727807809500,15.5503,148.89,148.77,46.441384]
[1727807809501,6.7194,148.83,148.77,39.719684]
[1727807809920,6.7196,148.82,148.78,6.7213]
[1727807810220,6.7196,148.82,148.79,23.776884]
[1727807810722,16.7924,148.88,148.79,30.497684]
[1727807811026,6.7187,148.84,148.79,30.497684]
[1727807811223,6.7181,148.85,148.81,6.7199]
[1727807811605,6.7181,148.85,148.82,23.776884]
[1727807812316,6.7178,148.86,148.82,25.12048781]
[1727807812706,6.7178,148.86,148.82,30.496184]
[1727807812904,6.7178,148.86,148.81,23.776884]
[1727807813105,16.7891,148.91,148.81,23.776884]
[1727807813833,6.7169,148.88,148.84,6.6491]
[1727807814024,6.7176,148.87,148.84,6.6491]
[1727807814224,6.7176,148.87,148.85,23.776884]
[1727807814402,6.7168,148.88,148.85,23.776884]
[1727807814815,6.7167,148.89,148.85,23.776884]
[1727807815422,6.7167,148.89,148.85,40.389084]
[1727807816727,6.716,148.9,148.85,47.106884]
[1727807816929,6.716,148.9,148.87,23.776884]
[1727807817225,6.716,148.9,148.85,47.107184]
[1727807818524,33.5666,148.96,148.85,40.389084]
[1727807818731,6.7177,148.86,148.85,16.6122]
[1727807819234,6.7173,148.87,148.85,16.6122]
[1727807819805,6.7177,148.86,148.85,16.6122]
[1727807820539,16.7915,148.89,148.81,15.2443]
[1727807820710,6.718,148.86,148.81,21.9639]
[1727807820911,16.7878,148.92,148.81,15.2443]
[1727807821214,6.7155,148.91,148.86,6.7173]
[1727807821414,6.7155,148.91,148.87,6.7171]
[1727807821627,6.7155,148.91,148.87,23.776884]
[1727807821815,6.7167,148.89,148.87,23.776884]
[1727807822011,16.7869,148.93,148.84,6.7181]
[1727807822012,6.7168,148.88,148.84,6.7181]
[1727807822216,16.7869,148.93,148.85,23.776884]
[1727807822429,33.5666,148.96,148.87,23.776884]
[1727807822430,6.7159,148.91,148.87,23.776884]
[1727807822632,50.3503,148.96,148.89,30.493084]
[1727807822633,6.7149,148.93,148.89,30.493084]
[1727807822931,6.7149,148.93,148.9,1.34294525]
[1727807823137,16.7837,148.96,148.9,1.34294525]
[1727807823317,6.7145,148.93,148.89,57.041784]
[1727807823525,0.4913574,148.98,148.89,40.251284]
[1727807823843,16.7846,148.95,148.89,40.251284]
[1727807824019,6.715,148.92,148.89,40.251284]
[1727807824217,6.7155,148.91,148.89,16.4744]
[1727807824427,16.7846,148.95,148.89,16.4744]
[1727807824626,16.7898,148.9,148.83,21.5441]
[1727807824928,6.7186,148.84,148.83,15.0081]
[1727807825311,33.5819,148.89,148.79,21.5441]
[1727807825538,6.7196,148.82,148.79,21.5441]
[1727807825841,33.5819,148.89,148.79,21.5441]
[1727807826018,6.7186,148.84,148.8,6.7204]
[1727807826216,16.7903,148.9,148.79,38.3455]
[1727807826429,6.7173,148.87,148.82,6.7194]
[1727807826638,6.7168,148.88,148.83,6.7189]
[1727807826936,50.3596,148.93,148.79,21.5441]
[1727807826937,6.7186,148.84,148.79,21.5441]
[1727807827141,33.5732,148.93,148.79,21.5441]
[1727807827142,6.7204,148.8,148.79,21.5441]
[1727807827520,6.7204,148.8,148.79,15.0081]
[1727807828234,6.7196,148.82,148.79,15.0081]
[1727807828444,16.7922,148.88,148.79,21.7289]
[1727807828738,16.7922,148.88,148.79,15.0081]
[1727807828739,6.7198,148.82,148.79,15.0081]
[1727807829121,33.5825,148.89,148.79,15.0081]
[1727807829122,6.7203,148.81,148.79,15.0081]
[1727807829344,16.7974,148.84,148.75,22.5043]
[1727807829517,6.7214,148.78,148.75,22.5043]
[1727807829827,6.7209,148.79,148.75,22.5043]
[1727807830033,6.7222,148.76,148.75,22.5043]
[1727807830216,16.7999,148.81,148.75,22.5043]
[1727807830217,6.7217,148.78,148.75,22.5043]
[1727807830539,33.5914,148.85,148.76,1.34420562]
[1727807830719,6.7209,148.79,148.75,22.5043]
[1727807831141,6.7213,148.78,148.75,22.5043]
[1727807831318,33.5914,148.85,148.75,22.5043]
[1727807831319,6.7218,148.77,148.75,22.5043]
[1727807831514,23.776884,148.84,148.71,39.3633]
[1727807831723,6.7227,148.75,148.71,22.5523]
[1727807832529,33.6005,148.81,148.71,22.5523]
[1727807832530,6.7239,148.73,148.71,22.5523]
[1727807833227,6.724,148.72,148.71,22.5523]
[1727807833433,16.804,148.78,148.71,22.5523]
[1727807833819,6.7236,148.73,148.71,22.5523]
[1727807835540,6.0689,148.79,148.67,15.5923]
[1727807835744,6.7263,148.67,148.63,15.5923]
[1727807836042,16.8107,148.72,148.63,15.5923]
[1727807836221,6.7276,148.64,148.63,15.5923]
[1727807836421,16.813,148.7,148.63,15.5923]
[1727807836820,16.8093,148.73,148.63,15.5923]
[1727807837028,6.7257,148.69,148.64,6.7276]
[1727807837221,16.8093,148.73,148.63,22.3204]
[1727807837431,16.8093,148.73,148.63,15.5923]
[1727807837630,6.7262,148.68,148.63,22.3202]
[1727807838222,6.7263,148.67,148.63,15.5923]
[1727807838723,16.8093,148.73,148.63,22.3199]
[1727807838724,6.7258,148.68,148.63,22.3199]
[1727807838930,6.7268,148.66,148.62,6.2068]
[1727807839169,16.812,148.71,148.62,6.2068]
[1727807839441,16.812,148.71,148.63,6.7279]
[1727807839833,6.7255,148.69,148.64,8.0728053]
[1727807840236,6.7241,148.72,148.67,6.7262]
[1727807840427,6.7241,148.72,148.68,23.776884]
[1727807840630,6.7245,148.71,148.68,23.776884]
[1727807840929,16.8074,148.75,148.67,16.2836]
[1727807841324,6.7259,148.68,148.63,22.2803]
[1727807841531,6.7269,148.66,148.63,15.5523]
[1727807842055,6.7264,148.67,148.63,15.5523]
[1727807842348,6.7257,148.69,148.64,6.7275]
[1727807842544,33.6095,148.77,148.63,32.3716]
[1727807842545,16.8066,148.76,148.65,18.16248548]
[1727807842730,6.7249,148.7,148.66,23.776884]
[1727807842925,6.7259,148.68,148.66,23.776884]
[1727807843339,16.8087,148.74,148.66,23.776884]
[1727807843544,23.776884,148.76,148.63,15.5523]
[1727807843836,23.776884,148.76,148.62,6.2068]
[1727807843837,6.7281,148.63,148.62,6.2068]
[1727807844346,6.7281,148.63,148.6,0.3583271]
[1727807844347,6.7286,148.62,148.6,0.3583271]
[1727807844946,16.8164,148.67,148.6,0.3583271]
[1727807845530,6.7277,148.64,148.6,0.3583271]
[1727807846533,6.7281,148.63,148.6,0.3583271]
[1727807848055,6.7281,148.63,148.6,24.1352111]
[1727807848353,16.8164,148.67,148.6,24.1352111]
[1727807848835,6.7282,148.63,148.6,24.1352111]
[1727807849262,16.8164,148.67,148.6,0.3583271]
[1727807849558,6.7286,148.62,148.6,0.3583271]
[1727807850129,6.7281,148.63,148.6,24.1352111]
[1727807850352,16.8164,148.67,148.6,0.3583271]
[1727807850555,6.7286,148.62,148.6,0.3583271]
[1727807850735,6.729,148.61,148.6,0.3583271]
[1727807851140,6.7286,148.62,148.6,0.3583271]
[1727807852052,6.7276,148.65,148.6,30.8646111]
[1727807852232,33.4559,148.7,148.6,30.8646111]
[1727807852549,6.728,148.64,148.6,24.1352111]
[1727807852948,6.7282,148.63,148.6,24.1352111]
[1727807853329,16.8151,148.68,148.6,0.3583271]
[1727807853946,6.729,148.61,148.6,0.3583271]
[1727807854332,16.6434,148.7,148.6,0.3583271]
[1727807854535,16.6434,148.7,148.6,7.0874271]
[1727807854536,6.7273,148.65,148.6,7.0874271]
[1727807854741,16.6434,148.7,148.61,1.34553819]
[1727807854742,6.7268,148.66,148.61,1.34553819]
[1727807854938,6.7264,148.67,148.62,6.7285]
[1727807855154,6.7273,148.65,148.6,23.9101271]
[1727807855456,6.2023,148.71,148.6,0.3583271]
[1727807855651,16.8151,148.68,148.6,24.1352111]
[1727807855853,6.7277,148.64,148.6,24.1352111]
[1727807856045,6.7277,148.64,148.6,7.0877271]
[1727807856372,16.8173,148.66,148.6,0.3583271]
[1727807856654,6.7282,148.63,148.6,0.3583271]
[1727807856852,6.7286,148.62,148.6,0.3583271]
[1727807857433,6.7282,148.63,148.6,0.3583271]
[1727807857834,16.8173,148.66,148.6,0.3583271]
[1727807858034,6.7285,148.63,148.6,0.3583271]
[1727807858231,16.8173,148.66,148.6,0.3583271]
[1727807858457,6.7278,148.64,148.6,7.0877271]
[1727807858657,6.7282,148.63,148.6,0.3583271]
[1727807858837,6.7285,148.62,148.6,0.3583271]
[1727807859165,6.729,148.61,148.6,0.3583271]
[1727807861960,6.7289,148.62,148.6,0.3583271]
[1727807862458,16.816,148.67,148.6,7.0876271]
[1727807862661,6.7272,148.65,148.61,31.85119833]
[1727807862871,6.7267,148.66,148.61,31.85119833]
[1727807863553,16.8129,148.7,148.61,23.776884]
[1727807863858,6.7285,148.63,148.6,16.8627271]
[1727807864864,6.729,148.61,148.6,0.3583271]
[1727807866151,6.732,148.55,148.52,16.2193]
[1727807866362,6.7329,148.53,148.48,23.5717]
[1727807866540,43.776884,148.56,148.45,1.1888907]
[1727807866741,6.7354,148.47,148.45,1.1888907]
[1727807866941,16.8325,148.53,148.45,1.1888907]
[1727807867150,6.7357,148.47,148.45,1.1888907]
[1727807867358,16.8325,148.53,148.45,1.1888907]
[1727807867359,6.7349,148.48,148.45,1.1888907]
[1727807867753,6.7345,148.49,148.45,1.1888907]
[1727807868455,16.8325,148.53,148.45,1.1888907]
[1727807868456,6.734,148.5,148.45,1.1888907]
[1727807869056,15.5037,148.57,148.45,1.1888907]
[1727807869057,6.7332,148.52,148.47,6.7353]
[1727807869246,6.7335,148.51,148.46,29.2175]
[1727807869442,6.7342,148.5,148.46,22.4817]
[1727807870867,6.7335,148.52,148.46,29.2174]
[1727807871044,6.7327,148.53,148.48,6.7349]
[1727807871465,16.8258,148.59,148.49,23.776884]
[1727807871769,16.8258,148.59,148.47,23.776884]
[1727807871770,16.8258,148.59,148.5,8.08039984]
[1727807871972,16.8258,148.59,148.47,40.614484]
[1727807871973,6.7322,148.54,148.47,40.614484]
[1727807872348,6.7322,148.54,148.5,23.776884]
[1727807872769,6.7326,148.53,148.5,23.776884]
[1727807873769,6.7326,148.53,148.49,6.7343]
[1727807873770,40.2276,148.62,148.52,23.776884]
[1727807873975,40.2276,148.62,148.52,30.509784]
[1727807873976,6.7312,148.57,148.52,30.509784]
[1727807874554,6.7322,148.54,148.5,6.7338]
[1727807874878,6.7322,148.54,148.51,23.776884]
[1727807875248,6.7316,148.56,148.51,23.776884]
[1727807875757,6.7318,148.55,148.51,23.776884]
[1727807875960,6.7322,148.54,148.51,23.776884]
[1727807876744,6.7317,148.55,148.51,23.776884]
[1727807877156,16.8244,148.6,148.51,23.776884]
[1727807877344,16.8244,148.6,148.52,6.7329]
[1727807877549,16.8208,148.63,148.52,16.8321]
[1727807877772,6.7299,148.59,148.54,6.7318]
[1727807877970,6.7313,148.56,148.53,23.776884]
[1727807878347,16.8253,148.59,148.5,6.7338]
[1727807878566,16.8253,148.59,148.52,6.733]
[1727807878567,6.7313,148.56,148.52,6.733]
[1727807878768,6.7313,148.56,148.52,23.776884]
[1727807879459,6.7313,148.56,148.52,30.509884]
[1727807879662,6.7303,148.59,148.53,6.7325]
[1727807879975,6.7309,148.57,148.52,23.776884]
[1727807880161,6.7309,148.57,148.52,30.509784]
[1727807880357,6.7343,148.5,148.46,16.1568]
[1727807880660,6.7353,148.47,148.46,16.1568]
[1727807880860,6.7348,148.49,148.46,16.1568]
[1727807881182,16.831,148.54,148.46,16.1568]
[1727807881477,6.734,148.5,148.46,22.8925]
[1727807881891,16.8276,148.57,148.46,16.1568]
[1727807882175,16.8276,148.57,148.47,23.5729]
[1727807882176,6.7331,148.52,148.47,23.5729]
[1727807882382,6.734,148.5,148.47,16.8377]
[1727807882581,16.8301,148.55,148.47,23.776884]
[1727807882959,6.7326,148.53,148.48,6.7345]
[1727807883283,6.7326,148.53,148.49,23.776884]
[1727807883660,16.8261,148.58,148.49,23.776884]
[1727807883661,6.7321,148.55,148.49,23.776884]
[1727807883853,6.7321,148.55,148.5,8.08033123]
[1727807884064,6.7321,148.55,148.46,16.1568]
[1727807884065,33.6505,148.59,148.46,16.1568]
[1727807884380,6.734,148.5,148.46,16.1568]
[1727807885083,1.17273728,148.58,148.46,16.1568]
[1727807885084,6.7353,148.47,148.46,16.1568]
[1727807885254,6.7358,148.46,148.45,1.1888907]
[1727807887157,33.6679,148.51,148.37,0.2334617]
[1727807887158,16.8413,148.45,148.37,0.2334617]
[1727807887359,6.739,148.39,148.37,0.2334617]
[1727807888260,16.8413,148.45,148.37,0.2334617]
[1727807888463,16.8413,148.45,148.38,23.776884]
[1727807888668,6.7391,148.39,148.37,0.2334617]
[1727807888892,6.7394,148.38,148.37,0.2334617]
[1727807889485,6.7421,148.33,148.3,0.8496845]
[1727807889786,6.349,148.41,148.3,0.8496845]
[1727807889787,6.7426,148.31,148.3,0.8496845]
[1727807889997,16.8517,148.36,148.3,0.8496845]
[1727807890158,20.0,148.38,148.3,0.8496845]
[1727807890361,6.7426,148.31,148.3,0.8496845]
[1727807890562,4.65255232,148.39,148.3,0.8496845]
[1727807890868,6.7398,148.38,148.32,6.7421]
[1727807891072,6.7398,148.38,148.3,0.8496845]
[1727807891073,16.8429,148.43,148.3,0.8496845]
[1727807891260,6.7404,148.36,148.3,7.5926845]
[1727807891459,6.7404,148.36,148.3,0.8496845]
[1727807891657,6.7413,148.34,148.3,0.8496845]
[1727807891878,6.7426,148.31,148.3,0.8496845]
[1727807892269,6.7444,148.27,148.21,6.7471]
[1727807892472,6.7431,148.3,148.22,16.8662]
[1727807892663,16.8577,148.31,148.18,23.0598]
[1727807892859,6.7449,148.26,148.21,6.7471]
[1727807893304,16.8577,148.31,148.19,6.7476]
[1727807893305,6.7453,148.25,148.19,6.7476]
[1727807893468,16.8577,148.31,148.18,23.0598]
[1727807893469,6.7448,148.27,148.21,6.7468]
[1727807893906,6.7457,148.25,148.18,29.8079]
[1727807894082,16.8577,148.31,148.19,6.7478]
[1727807894083,16.8599,148.29,148.19,6.7478]
[1727807894297,16.8599,148.29,148.17,16.5453]
[1727807894298,23.776884,148.29,148.17,16.5453]
[1727807894800,6.7444,148.27,148.21,6.7467]
[1727807894962,6.7444,148.27,148.22,6.7467]
[1727807895270,6.341,148.35,148.22,6.7463]
[1727807895271,6.7441,148.28,148.22,6.7463]
[1727807895594,16.8547,148.33,148.23,6.7462]
[1727807895804,16.8547,148.33,148.21,16.8678]
[1727807895805,6.7439,148.29,148.21,16.8678]
[1727807896087,6.742,148.33,148.22,23.776884]
[1727807896296,16.8492,148.38,148.26,23.776884]
[1727807896472,6.3421,148.4,148.26,23.776884]
[1727807896673,6.7399,148.37,148.26,23.776884]
[1727807896872,16.8479,148.39,148.28,23.776884]
[1727807897072,6.7413,148.34,148.29,6.7431]
[1727807897278,6.3421,148.4,148.27,33.4928]
[1727807897475,6.7422,148.32,148.27,33.4928]
[1727807897671,6.7422,148.32,148.28,23.776884]
[1727807897871,6.7419,148.33,148.28,23.776884]
[1727807898203,6.7413,148.34,148.28,23.776884]
[1727807898370,6.7413,148.34,148.28,30.520784]
[1727807898576,23.1894,148.4,148.28,23.776884]
[1727807898775,6.7413,148.34,148.28,30.520384]
[1727807899495,23.1894,148.4,148.31,6.7425]
[1727807899801,6.7403,148.37,148.32,8.09015404]
[1727807899964,6.7403,148.37,148.32,5.742]
[1727807900168,15.3902,148.43,148.33,8.08974512]
[1727807900386,6.7399,148.37,148.31,30.519084]
[1727807900599,6.7399,148.37,148.32,6.742]
[1727807900786,6.7398,148.38,148.33,23.776884]
[1727807900996,16.8427,148.44,148.34,23.776884]
[1727807901182,6.739,148.39,148.34,23.776884]
[1727807901388,6.739,148.39,148.34,30.518084]
[1727807902097,39.7419,148.46,148.33,23.776884]
[1727807902396,6.7384,148.41,148.35,6.7407]
[1727807902591,6.7387,148.4,148.36,23.776884]
[1727807902897,6.7375,148.43,148.38,6.7392]
[1727807903103,33.3849,148.49,148.36,23.776884]
[1727807903104,6.7376,148.42,148.37,23.5892]
[1727807903395,33.3849,148.49,148.37,23.5892]
[1727807903396,6.7376,148.43,148.37,23.5892]
[1727807903608,6.7376,148.43,148.38,23.776884]
[1727807903786,6.7376,148.43,148.38,30.516284]
[1727807904105,6.4085,148.5,148.4,23.776884]
[1727807904303,6.7363,148.45,148.4,30.515384]
[1727807904487,6.7356,148.47,148.42,6.7375]
[1727807904693,6.7349,148.48,148.43,30.513984]
[1727807904884,16.8349,148.51,148.41,16.8441]
[1727807905278,6.7355,148.47,148.42,30.514484]
[1727807905474,6.7349,148.48,148.44,23.776884]
[1727807905687,23.0856,148.54,148.44,23.776884]
[1727807905688,6.7348,148.49,148.44,23.776884]
[1727807905975,6.7349,148.48,148.44,23.776884]
[1727807906586,18.00090946,148.56,148.44,23.776884]
[1727807907088,6.7348,148.49,148.44,30.513484]
[1727807907283,6.735,148.48,148.44,23.776884]
[1727807907490,16.8313,148.54,148.43,23.776884]
[1727807907491,6.7354,148.47,148.43,23.776884]
[1727807907796,16.8335,148.52,148.43,30.513984]
[1727807908101,6.7349,148.48,148.43,30.513984]
[1727807908992,16.8358,148.5,148.4,16.846]
[1727807909188,6.7377,148.42,148.37,39.2168]
[1727807909492,33.6707,148.5,148.37,15.6275]
[1727807909493,43.776884,148.47,148.37,15.6275]
[1727807909682,6.7394,148.38,148.37,15.6275]
[1727807909884,6.7401,148.37,148.35,6.4984]
[1727807910110,6.7403,148.36,148.35,6.4984]
[1727807910482,6.7403,148.36,148.32,15.8083]
[1727807910799,33.6801,148.46,148.32,15.8083]
[1727807910800,6.7417,148.33,148.32,15.8083]
[1727807910977,6.7413,148.34,148.32,15.8083]
[1727807911181,16.8493,148.38,148.29,6.4968]
[1727807911682,6.7422,148.32,148.29,6.4968]
[1727807912378,6.7426,148.31,148.27,16.0795]
[1727807912574,6.7423,148.32,148.27,22.8238]
[1727807912802,16.8493,148.38,148.27,16.0795]
[1727807912983,6.7418,148.33,148.28,6.7439]
[1727807913177,6.7422,148.32,148.27,22.8238]
[1727807913378,6.7426,148.31,148.28,23.776884]
[1727807913577,6.7421,148.32,148.28,23.776884]
[1727807913779,6.7422,148.32,148.27,22.8239]
[1727807914015,6.7417,148.33,148.28,16.8596]
[1727807914301,16.8493,148.38,148.27,16.0795]
[1727807914302,6.7435,148.3,148.27,16.0795]
[1727807914504,16.854,148.34,148.27,16.0795]
[1727807914805,16.8492,148.38,148.27,16.0795]
[1727807915013,6.7408,148.35,148.3,6.7429]
[1727807915186,16.8492,148.38,148.27,32.9395]
[1727807915385,6.7417,148.33,148.28,6.7439]
[1727807915704,6.7412,148.35,148.29,6.7434]
[1727807915901,6.7413,148.34,148.29,6.7434]
[1727807916203,16.8492,148.38,148.27,32.9395]
[1727807916375,16.8492,148.38,148.27,39.6838]
[1727807916376,6.7421,148.33,148.27,39.6838]
[1727807916573,6.7421,148.33,148.28,30.520784]
[1727807916998,6.7408,148.36,148.3,6.7426]
[1727807917581,6.6353,148.41,148.29,16.858]
[1727807917776,6.7403,148.36,148.31,6.7421]
[1727807918284,6.7399,148.37,148.32,6.7421]
[1727807918478,39.9372,148.46,148.32,6.7421]
[1727807918479,6.7389,148.4,148.32,23.776884]
[1727807918675,6.7393,148.39,148.34,6.7412]
[1727807919103,16.8418,148.44,148.32,23.776884]
[1727807919395,6.7399,148.37,148.33,6.7416]
[1727807919778,47.27529754,148.46,148.31,16.8556]
[1727807919976,16.8493,148.38,148.28,16.8597]
[1727807920202,6.7413,148.34,148.3,6.7429]
[1727807920417,16.8493,148.38,148.29,6.7431]
[1727807920708,6.7408,148.35,148.3,6.7429]
[1727807920878,16.8456,148.41,148.3,16.8569]
[1727807921076,16.8456,148.41,148.27,16.0795]
[1727807921077,16.8421,148.44,148.33,16.854]
[1727807921301,6.7389,148.4,148.34,6.7408]
[1727807921512,6.738,148.42,148.36,6.74]
[1727807921683,6.738,148.42,148.37,6.7398]
[1727807921882,6.7381,148.41,148.36,6.7402]
[1727807922083,6.7387,148.4,148.35,23.5916]
[1727807922379,15.6237,148.49,148.34,30.190684]
[1727807922380,16.839,148.47,148.38,6.7391]
[1727807922687,15.6237,148.49,148.37,16.849]
[1727807922893,33.6804,148.46,148.34,30.190684]
[1727807923092,6.7399,148.37,148.34,6.4138]
[1727807923479,6.7408,148.35,148.34,6.4138]
[1727807923684,6.7408,148.35,148.31,16.8561]
[1727807923685,6.7408,148.35,148.31,23.5986]
[1727807924091,16.8459,148.41,148.31,16.8561]
[1727807924575,16.8459,148.41,148.32,1.34815757]
[1727807924784,6.7386,148.4,148.36,6.7402]
[1727807925104,6.7381,148.41,148.37,1.34776994]
[1727807925302,20.0,148.46,148.37,1.34776994]
[1727807925484,6.7376,148.42,148.37,8.08756994]
[1727807925803,6.7376,148.42,148.37,6.7398]
[1727807926098,6.7372,148.43,148.39,6.7389]
[1727807926279,16.8389,148.47,148.4,1.34753667]
[1727807926480,16.8389,148.47,148.39,6.7389]
[1727807926684,16.8389,148.47,148.38,6.1697]
[1727807926881,6.7372,148.43,148.38,12.909]
[1727807927188,6.7372,148.43,148.39,6.7389]
[1727807927703,6.7376,148.42,148.38,12.909]
[1727807927913,16.8413,148.45,148.38,6.1697]
[1727807928206,6.7387,148.4,148.38,6.1697]
[1727807929309,6.7394,148.38,148.37,16.6577]
[1727807929611,6.739,148.39,148.37,16.6577]
[1727807930202,6.739,148.39,148.3,33.715]
[1727807930203,53.6881,148.43,148.31,1.34779343]
[1727807930405,53.6881,148.43,148.32,16.8549]
[1727807930898,6.7404,148.36,148.32,23.5967]
[1727807931432,6.7404,148.36,148.3,6.2697]
[1727807931433,16.8468,148.4,148.3,6.2697]
[1727807931602,53.6881,148.43,148.3,6.2697]
[1727807931809,16.849,148.38,148.3,6.2697]
[1727807932185,6.7416,148.34,148.3,6.2697]
[1727807932406,6.7426,148.31,148.3,6.2697]
[1727807932722,6.7413,148.34,148.3,6.2697]
[1727807932888,6.7413,148.34,148.31,1.34821385]
[1727807933216,16.8481,148.39,148.31,1.34821385]
[1727807933519,6.7412,148.34,148.3,6.2697]
[1727807934198,6.7419,148.33,148.3,6.2697]
[1727807934714,6.7402,148.37,148.33,6.7416]
[1727807935006,16.8434,148.43,148.34,25.12477333]
[1727807935183,16.8434,148.43,148.34,40.629384]
[1727807935382,39.9358,148.46,148.34,23.776884]
[1727807935383,6.7382,148.41,148.34,23.776884]
[1727807935603,6.7376,148.42,148.37,30.516684]
[1727807935809,16.8402,148.46,148.38,1.34753572]
[1727807936111,6.7381,148.41,148.36,16.8503]
[1727807936313,6.7381,148.41,148.36,23.5906]
[1727807936811,16.8424,148.44,148.36,23.5906]
[1727807937107,6.7391,148.39,148.36,23.776884]
[1727807937313,6.7391,148.39,148.35,23.776884]
[1727807938193,6.7391,148.39,148.35,6.7406]
[1727807938509,6.7382,148.41,148.37,21.8503]
[1727807938690,6.7382,148.41,148.38,1.34755316]
[1727807939101,16.8424,148.44,148.38,1.34755316]
[1727807939511,6.7382,148.41,148.38,23.776884]
[1727807940409,13.88997891,148.5,148.38,23.776884]
[1727807940410,22.7056,148.53,148.41,23.776884]
[1727807940597,16.8319,148.53,148.46,23.776884]
[1727807940804,33.6611,148.54,148.39,42.98573532]
[1727807941123,6.7366,148.45,148.41,23.776884]
[1727807941288,6.7368,148.44,148.41,23.776884]
[1727807941487,16.839,148.47,148.4,23.776884]
[1727807941683,6.7371,148.44,148.4,23.776884]
[1727807942319,16.839,148.47,148.4,23.776884]
[1727807942609,6.7392,148.39,148.37,15.1105]
[1727807943114,43.776884,148.45,148.35,6.1834]
[1727807943322,6.7403,148.36,148.35,6.1834]
[1727807943492,20.0,148.45,148.35,6.1834]
[1727807943688,6.7399,148.37,148.35,6.1834]
[1727807943932,6.7403,148.36,148.35,6.1834]
[1727807944088,6.7412,148.34,148.33,16.4204]
[1727807944293,6.7394,148.38,148.33,23.1621]
[1727807944489,6.2056,148.49,148.33,16.4204]
[1727807944792,16.8424,148.44,148.33,33.2745]
[1727807945214,6.7393,148.39,148.34,6.7411]
[1727807945594,6.7393,148.39,148.35,23.776884]
[1727807945912,16.8424,148.44,148.35,23.776884]
[1727807946095,6.7426,148.31,148.3,6.0055]
[1727807946300,6.7439,148.28,148.27,16.0483]
[1727807946490,6.7439,148.28,148.26,6.21]